[Event "SM-blixten 2025"]
[Site "Uppsala, Sweden"]
[Date "2025.07.03"]
[Round "9.7"]
[White "Bjorkman, Filip"]
[Black "Wernberg, Hugo"]
[Result "1-0"]
[TimeControl "3 min + 2 sec increment starting from move 1"]
[BlackTitle "FM"]
[WhiteElo "2116"]
[BlackElo "2247"]

1. e4 {[%clk 00:03:02]} {[%emt 00:00:02]} c5 {[%clk 00:03:04]} {[%emt
00:00:01]} 2. Nf3 {[%clk 00:03:02]} {[%emt 00:00:02]} d6 {[%clk 00:03:05]}
{[%emt 00:00:01]} 3. d4 {[%clk 00:03:03]} {[%emt 00:00:01]} cxd4 4. Nxd4 {[%clk
00:03:04]} Nf6 {[%clk 00:03:07]} {[%emt 00:00:01]} 5. Nc3 {[%clk 00:03:06]}
{[%emt 00:00:01]} a6 {[%clk 00:03:08]} 6. f3 {[%clk 00:03:07]} e5 {[%clk
00:03:04]} {[%emt 00:00:06]} 7. Nb3 {[%clk 00:03:08]} {[%emt 00:00:01]} Be6
{[%clk 00:03:05]} {[%emt 00:00:01]} 8. Be3 {[%clk 00:03:09]} h5 {[%clk
00:03:06]} {[%emt 00:00:02]} 9. Nd5 {[%clk 00:03:08]} {[%emt 00:00:02]} Nbd7
{[%clk 00:03:03]} {[%emt 00:00:05]} 10. Qd2 {[%clk 00:03:07]} {[%emt 00:00:03]}
Bxd5 {[%clk 00:03:01]} {[%emt 00:00:04]} 11. exd5 {[%clk 00:03:07]} {[%emt
00:00:02]} Be7 {[%clk 00:02:59]} {[%emt 00:00:04]} 12. Rc1 {[%clk 00:03:07]}
{[%emt 00:00:02]} Rc8 {[%clk 00:02:55]} {[%emt 00:00:06]} 13. c4 {[%clk
00:03:05]} {[%emt 00:00:05]} e4 {[%clk 00:02:47]} {[%emt 00:00:09]} 14. Be2
{[%clk 00:03:01]} {[%emt 00:00:06]} Ne5 {[%clk 00:02:42]} {[%emt 00:00:07]} 15.
f4 {[%clk 00:02:52]} {[%emt 00:00:10]} Neg4 {[%clk 00:02:43]} 16. Bd4 {[%clk
00:02:53]} {[%emt 00:00:01]} Nh6 {[%clk 00:02:36]} {[%emt 00:00:10]} 17. O-O
{[%clk 00:02:49]} {[%emt 00:00:05]} Nf5 {[%clk 00:02:34]} {[%emt 00:00:05]} 18.
Bc3 {[%clk 00:02:32]} {[%emt 00:00:19]} Qb6+ {[%clk 00:02:31]} {[%emt
00:00:05]} 19. Nd4 {[%clk 00:02:26]} {[%emt 00:00:08]} Ng4 {[%clk 00:02:22]}
{[%emt 00:00:11]} 20. Kh1 {[%clk 00:02:17]} {[%emt 00:00:12]} Nge3 {[%clk
00:02:18]} {[%emt 00:00:05]} 21. Nxf5 {[%clk 00:02:12]} {[%emt 00:00:06]} Nxf5
{[%clk 00:02:19]} {[%emt 00:00:02]} 22. b4 {[%clk 00:02:09]} {[%emt 00:00:06]}
h4 {[%clk 00:02:18]} {[%emt 00:00:02]} 23. Bg4 {[%clk 00:02:05]} {[%emt
00:00:05]} Ne3 {[%clk 00:02:15]} {[%emt 00:00:06]} 24. Bxc8 {[%clk 00:02:02]}
{[%emt 00:00:05]} O-O {[%clk 00:02:10]} {[%emt 00:00:07]} 25. Bh3 {[%clk
00:01:52]} {[%emt 00:00:12]} Nxf1 {[%clk 00:02:05]} {[%emt 00:00:07]} 26. Rxf1
{[%clk 00:01:52]} Qc7 {[%clk 00:02:02]} {[%emt 00:00:06]} 27. Rc1 {[%clk
00:01:41]} {[%emt 00:00:14]} f5 {[%clk 00:01:57]} {[%emt 00:00:06]} 28. Bd4
{[%clk 00:01:40]} {[%emt 00:00:03]} Qd8 {[%clk 00:01:48]} {[%emt 00:00:11]} 29.
Qc3 {[%clk 00:01:33]} {[%emt 00:00:09]} g5 {[%clk 00:01:46]} {[%emt 00:00:04]}
30. fxg5 {[%clk 00:01:32]} {[%emt 00:00:03]} Bxg5 {[%clk 00:01:47]} {[%emt
00:00:01]} 31. Rf1 {[%clk 00:01:33]} Qe8 {[%clk 00:01:33]} {[%emt 00:00:16]} 32.
Be3 {[%clk 00:01:20]} {[%emt 00:00:15]} f4 {[%clk 00:01:30]} {[%emt 00:00:06]}
33. Be6+ {[%clk 00:01:19]} {[%emt 00:00:02]} Kh7 {[%clk 00:01:30]} {[%emt
00:00:02]} 34. Bd4 {[%clk 00:01:08]} {[%emt 00:00:14]} Qg6 {[%clk 00:01:26]}
{[%emt 00:00:05]} 35. Qh3 {[%clk 00:01:05]} {[%emt 00:00:05]} e3 {[%clk
00:01:23]} {[%emt 00:00:06]} 36. Qg4 {[%clk 00:00:48]} {[%emt 00:00:19]} f3
{[%clk 00:01:21]} {[%emt 00:00:04]} 37. gxf3 {[%clk 00:00:41]} {[%emt
00:00:09]} e2 {[%clk 00:01:21]} {[%emt 00:00:02]} 38. Re1 {[%clk 00:00:39]}
{[%emt 00:00:04]} Qd3 {[%clk 00:01:17]} {[%emt 00:00:05]} 39. Bf2 {[%clk
00:00:18]} {[%emt 00:00:23]} Bd2 {[%clk 00:00:10]} {[%emt 00:01:10]} 40. Qxh4+
{[%clk 00:00:06]} {[%emt 00:00:15]} Bh6 {[%clk 00:00:08]} {[%emt 00:00:03]} 41.
Bg4 {[%clk 00:00:05]} {[%emt 00:00:03]} Kg7 {[%clk 00:00:05]} {[%emt 00:00:05]}
42. Qe7+ {[%clk 00:00:06]} {[%emt 00:00:01]} Rf7 {[%clk 00:00:06]} 43. Qxd6
{[%clk 00:00:07]} Bf4 {[%clk 00:00:06]} {[%emt 00:00:02]} 44. Qe6 {[%clk
00:00:04]} {[%emt 00:00:05]} Qxc4 {[%clk 00:00:05]} {[%emt 00:00:04]} 45. Qe4
{[%clk 00:00:05]} {[%emt 00:00:01]} Qc3 {[%clk 00:00:05]} {[%emt 00:00:01]} 46.
Be6 {[%clk 00:00:05]} {[%emt 00:00:03]} Rf6 {[%clk 00:00:06]} {[%emt 00:00:01]}
47. d6 {[%clk 00:00:05]} Bd2 {[%clk 00:00:06]} {[%emt 00:00:02]} 48. d7 {[%clk
00:00:06]} {[%emt 00:00:01]} Qc7 {[%clk 00:00:05]} {[%emt 00:00:03]} 49. Qg4+
{[%clk 00:00:05]} {[%emt 00:00:03]} Rg6 {[%emt 00:00:03]} 50. Bd4+ {[%clk
00:00:05]} Kh7 {[%clk 00:00:06]} {[%emt 00:00:01]} 51. Qh5+ {[%clk 00:00:06]}
{[%emt 00:00:01]} Rh6 {[%clk 00:00:06]} {[%emt 00:00:02]} 52. Qf7# {[%clk
00:00:07]} 1-0

[Event "SM-blixten 2025"]
[Site "Uppsala, Sweden"]
[Date "2025.07.03"]
[Round "11.3"]
[White "Grahn, Vidar"]
[Black "Crevatin, Leo"]
[Result "1-0"]
[TimeControl "3 min + 2 sec increment starting from move 1"]
[WhiteTitle "FM"]
[BlackTitle "FM"]
[WhiteElo "2239"]
[BlackElo "2248"]

1. e4 {[%clk 00:03:04]} {[%emt 00:11:16]} c6 {[%clk 00:03:04]} 2. Nf3 {[%clk
00:03:05]} d5 {[%clk 00:03:05]} 3. d3 {[%clk 00:03:06]} {[%emt 00:00:01]} g6
{[%clk 00:03:06]} 4. e5 {[%clk 00:03:07]} f6 {[%clk 00:03:07]} {[%emt
00:00:01]} 5. d4 {[%clk 00:03:08]} fxe5 6. Nxe5 {[%clk 00:03:09]} Bg7 {[%clk
00:03:09]} 7. Be2 {[%clk 00:03:05]} {[%emt 00:00:05]} Nh6 {[%clk 00:03:08]}
{[%emt 00:00:03]} 8. O-O {[%clk 00:03:04]} {[%emt 00:00:03]} O-O {[%clk
00:03:09]} {[%emt 00:00:02]} 9. c4 {[%clk 00:02:55]} {[%emt 00:00:11]} Nf7
{[%clk 00:03:04]} {[%emt 00:00:07]} 10. Nf3 {[%clk 00:02:55]} {[%emt 00:00:02]}
Be6 {[%clk 00:02:42]} {[%emt 00:00:24]} 11. cxd5 {[%clk 00:02:40]} {[%emt
00:00:16]} cxd5 {[%clk 00:02:40]} {[%emt 00:00:05]} 12. Nc3 {[%clk 00:02:40]}
{[%emt 00:00:01]} Nc6 {[%clk 00:02:41]} {[%emt 00:00:02]} 13. Be3 {[%clk
00:02:35]} {[%emt 00:00:06]} Bg4 {[%clk 00:02:03]} {[%emt 00:00:40]} 14. h3
{[%clk 00:02:32]} {[%emt 00:00:05]} Bxf3 15. Bxf3 {[%clk 00:02:33]} e5 {[%clk
00:01:48]} 16. dxe5 {[%clk 00:02:19]} {[%emt 00:00:17]} d4 {[%clk 00:01:49]} 17.
Bxc6 {[%clk 00:02:19]} {[%emt 00:00:01]} dxe3 {[%clk 00:01:48]} {[%emt
00:00:03]} 18. Bd5 {[%clk 00:01:54]} {[%emt 00:00:27]} exf2+ {[%clk 00:01:03]}
{[%emt 00:00:46]} 19. Rxf2 {[%clk 00:01:55]} {[%emt 00:00:01]} Qb6 {[%clk
00:01:01]} {[%emt 00:00:05]} 20. e6 {[%clk 00:01:23]} {[%emt 00:00:34]} Ng5
{[%clk 00:00:30]} {[%emt 00:00:32]} 21. e7+ {[%clk 00:01:23]} {[%emt 00:00:03]}
Kh8 {[%clk 00:00:31]} 22. exf8=Q+ {[%clk 00:01:22]} {[%emt 00:00:03]} Rxf8
{[%clk 00:00:31]} {[%emt 00:00:02]} 23. Bf3 {[%clk 00:00:58]} {[%emt 00:00:27]}
Rxf3 {[%clk 00:00:28]} {[%emt 00:00:05]} 24. gxf3 {[%clk 00:00:52]} {[%emt
00:00:07]} Nxh3+ {[%clk 00:00:29]} {[%emt 00:00:02]} 25. Kg2 {[%clk 00:00:46]}
{[%emt 00:00:05]} Qxf2+ {[%clk 00:00:18]} {[%emt 00:00:16]} 26. Kxh3 {[%clk
00:00:47]} {[%emt 00:00:01]} Bf6 {[%clk 00:00:13]} {[%emt 00:00:06]} 27. Ne4
{[%clk 00:00:38]} {[%emt 00:00:12]} Qxb2 {[%clk 00:00:12]} {[%emt 00:00:03]} 28.
Nxf6 {[%clk 00:00:32]} {[%emt 00:00:07]} Qxf6 {[%clk 00:00:10]} {[%emt
00:00:04]} 29. Rc1 {[%clk 00:00:32]} {[%emt 00:00:03]} Qf5+ {[%clk 00:00:11]}
{[%emt 00:00:01]} 30. Kg2 {[%clk 00:00:33]} Qg5+ {[%clk 00:00:08]} {[%emt
00:00:06]} 31. Kf1 {[%clk 00:00:34]} Qd2 {[%clk 00:00:07]} {[%emt 00:00:03]} 32.
Qxd2 {[%clk 00:00:35]} {[%emt 00:00:02]} 1-0

[Event "SM-blixten 2025"]
[Site "Uppsala, Sweden"]
[Date "2025.07.03"]
[Round "1.8"]
[White "Religa, Marek"]
[Black "Kosmidis, Thomas"]
[Result "1-0"]
[TimeControl "3 min + 2 sec increment starting from move 1"]
[WhiteElo "2227"]
[BlackElo "1820"]

1. e4 {[%clk 00:03:04]} {[%emt 00:04:26]} c6 {[%clk 00:03:03]} {[%emt
00:00:02]} 2. c4 {[%clk 00:03:05]} {[%emt 00:00:01]} d5 {[%clk 00:03:03]}
{[%emt 00:00:01]} 3. cxd5 {[%clk 00:03:06]} cxd5 {[%clk 00:03:04]} {[%emt
00:00:01]} 4. exd5 {[%clk 00:03:08]} Nf6 {[%clk 00:03:05]} {[%emt 00:00:01]} 5.
Nc3 {[%clk 00:03:09]} Nxd5 {[%clk 00:03:04]} {[%emt 00:00:03]} 6. Nf3 {[%clk
00:03:10]} {[%emt 00:00:01]} Nxc3 {[%clk 00:02:59]} {[%emt 00:00:07]} 7. bxc3
{[%clk 00:03:12]} {[%emt 00:00:01]} Nc6 {[%clk 00:03:00]} {[%emt 00:00:01]} 8.
d4 {[%clk 00:03:13]} Bg4 {[%clk 00:02:53]} {[%emt 00:00:08]} 9. Bc4 {[%clk
00:03:05]} {[%emt 00:00:10]} e6 {[%clk 00:02:45]} {[%emt 00:00:10]} 10. Qb3
{[%clk 00:03:02]} {[%emt 00:00:05]} Bxf3 {[%clk 00:02:44]} {[%emt 00:00:03]} 11.
gxf3 {[%clk 00:03:03]} {[%emt 00:00:01]} Qf6 {[%clk 00:02:37]} {[%emt
00:00:10]} 12. Qxb7 {[%clk 00:02:56]} {[%emt 00:00:08]} Rd8 {[%clk 00:02:06]}
{[%emt 00:00:32]} 13. Qxc6+ {[%clk 00:02:56]} {[%emt 00:00:02]} Rd7 {[%clk
00:02:04]} {[%emt 00:00:04]} 14. Bb5 {[%clk 00:02:45]} {[%emt 00:00:14]} Qe7
{[%clk 00:02:00]} {[%emt 00:00:06]} 15. Ba3 {[%clk 00:02:35]} {[%emt 00:00:11]}
Qd8 {[%clk 00:01:54]} {[%emt 00:00:08]} 16. Qxd7+ Qxd7 {[%clk 00:01:55]} 17.
Bxd7+ {[%clk 00:02:36]} Kxd7 {[%clk 00:01:56]} {[%emt 00:00:01]} 18. Bxf8
{[%clk 00:02:36]} {[%emt 00:00:01]} Rxf8 {[%clk 00:01:57]} {[%emt 00:00:02]} 19.
Rb1 {[%clk 00:02:37]} {[%emt 00:00:01]} Rc8 {[%clk 00:01:53]} {[%emt 00:00:05]}
20. Kd2 {[%clk 00:02:38]} Ke7 {[%clk 00:01:53]} {[%emt 00:00:04]} 21. Rb7+
{[%clk 00:02:39]} Kf6 {[%clk 00:01:53]} {[%emt 00:00:01]} 22. Rhb1 {[%clk
00:02:40]} {[%emt 00:00:01]} Rc6 {[%clk 00:01:48]} {[%emt 00:00:08]} 23. Rxa7
{[%clk 00:02:40]} {[%emt 00:00:02]} g6 {[%clk 00:01:45]} {[%emt 00:00:05]} 24.
Rbb7 {[%clk 00:02:41]} Kg5 {[%clk 00:01:36]} {[%emt 00:00:10]} 25. Rxf7 {[%clk
00:02:42]} {[%emt 00:00:02]} h5 {[%clk 00:01:36]} 26. a4 {[%clk 00:02:41]}
{[%emt 00:00:03]} Rb6 {[%clk 00:01:35]} {[%emt 00:00:03]} 27. a5 {[%clk
00:02:42]} {[%emt 00:00:01]} Rb2+ {[%clk 00:01:36]} {[%emt 00:00:01]} 28. Ke3
{[%clk 00:02:44]} Rb3 {[%clk 00:01:31]} {[%emt 00:00:07]} 29. Kd3 {[%clk
00:02:44]} Rb2 {[%clk 00:01:32]} {[%emt 00:00:02]} 30. a6 {[%clk 00:02:46]}
Rxf2 {[%clk 00:01:30]} {[%emt 00:00:03]} 31. Rac7 {[%clk 00:02:47]} {[%emt
00:00:02]} Ra2 {[%clk 00:01:25]} {[%emt 00:00:07]} 32. a7 {[%clk 00:02:48]}
{[%emt 00:00:01]} Kh6 {[%clk 00:01:19]} {[%emt 00:00:07]} 33. h4 {[%clk
00:02:49]} {[%emt 00:00:01]} g5 {[%clk 00:01:17]} {[%emt 00:00:05]} 34. Rf6#
{[%clk 00:02:48]} {[%emt 00:00:01]} 1-0

[Event "SM-blixten 2025"]
[Site "Uppsala, Sweden"]
[Date "2025.07.03"]
[Round "3.4"]
[White "Pantzar, Milton"]
[Black "Karlsson, Stefan 2005"]
[Result "0-1"]
[TimeControl "3 min + 2 sec increment starting from move 1"]
[WhiteTitle "IM"]
[WhiteElo "2444"]
[BlackElo "2127"]

1. d4 {[%clk 00:03:03]} {[%emt 00:00:01]} d5 {[%clk 00:03:02]} {[%emt
00:00:02]} 2. c4 {[%clk 00:03:00]} {[%emt 00:00:04]} c5 {[%clk 00:03:04]}
{[%emt 00:00:02]} 3. e3 {[%clk 00:03:00]} {[%emt 00:00:02]} cxd4 {[%clk
00:02:59]} {[%emt 00:00:07]} 4. exd4 {[%clk 00:03:00]} {[%emt 00:00:02]} Nf6
{[%clk 00:03:00]} 5. Nc3 {[%clk 00:02:58]} {[%emt 00:00:04]} Nc6 {[%clk
00:03:01]} {[%emt 00:00:01]} 6. Nf3 {[%clk 00:02:56]} {[%emt 00:00:04]} a6
{[%clk 00:03:00]} {[%emt 00:00:03]} 7. h3 {[%clk 00:02:56]} {[%emt 00:00:02]}
e6 {[%clk 00:02:34]} {[%emt 00:00:28]} 8. c5 {[%clk 00:02:53]} {[%emt
00:00:05]} b6 {[%clk 00:02:28]} {[%emt 00:00:08]} 9. b4 {[%clk 00:02:45]}
{[%emt 00:00:10]} Ne4 {[%clk 00:02:16]} {[%emt 00:00:14]} 10. Na4 {[%clk
00:02:08]} {[%emt 00:00:40]} bxc5 {[%clk 00:02:07]} {[%emt 00:00:11]} 11. dxc5
{[%clk 00:02:08]} {[%emt 00:00:01]} Nxb4 {[%clk 00:01:46]} {[%emt 00:00:23]} 12.
Be2 {[%clk 00:01:54]} {[%emt 00:00:16]} Nxc5 {[%clk 00:01:34]} {[%emt
00:00:14]} 13. O-O {[%clk 00:01:50]} {[%emt 00:00:06]} Nxa4 {[%clk 00:01:33]}
{[%emt 00:00:04]} 14. Qxa4+ {[%clk 00:01:50]} {[%emt 00:00:01]} Bd7 {[%clk
00:01:34]} 15. Qd1 {[%clk 00:01:41]} {[%emt 00:00:11]} Be7 {[%clk 00:01:29]}
{[%emt 00:00:07]} 16. Bb2 {[%clk 00:01:16]} {[%emt 00:00:27]} Bf6 {[%clk
00:01:26]} {[%emt 00:00:04]} 17. Bxf6 {[%clk 00:01:07]} {[%emt 00:00:12]} Qxf6
{[%clk 00:01:27]} 18. Rb1 {[%clk 00:01:02]} {[%emt 00:00:08]} Nxa2 {[%clk
00:01:16]} {[%emt 00:00:13]} 19. Rb7 {[%clk 00:00:49]} {[%emt 00:00:15]} Nc3
{[%clk 00:01:14]} {[%emt 00:00:04]} 20. Qd2 {[%clk 00:00:43]} {[%emt 00:00:07]}
Nxe2+ {[%clk 00:01:11]} {[%emt 00:00:05]} 21. Qxe2 {[%clk 00:00:44]} {[%emt
00:00:02]} Bb5 {[%clk 00:00:54]} {[%emt 00:00:19]} 22. Rxb5 {[%clk 00:00:34]}
{[%emt 00:00:11]} axb5 {[%clk 00:00:56]} {[%emt 00:00:01]} 23. Qxb5+ {[%clk
00:00:35]} {[%emt 00:00:01]} Kf8 {[%clk 00:00:53]} {[%emt 00:00:05]} 24. Qb7
{[%clk 00:00:19]} {[%emt 00:00:19]} Re8 {[%clk 00:00:44]} {[%emt 00:00:11]} 25.
Rc1 {[%clk 00:00:14]} {[%emt 00:00:06]} g6 {[%clk 00:00:44]} {[%emt 00:00:02]}
26. Rc7 {[%clk 00:00:14]} {[%emt 00:00:02]} Kg7 {[%clk 00:00:44]} {[%emt
00:00:01]} 27. h4 {[%clk 00:00:11]} {[%emt 00:00:06]} Rb8 {[%clk 00:00:40]}
{[%emt 00:00:06]} 28. Qa7 {[%clk 00:00:06]} {[%emt 00:00:07]} Ra8 {[%clk
00:00:29]} {[%emt 00:00:13]} 29. Qe3 {[%clk 00:00:05]} {[%emt 00:00:03]} Rhc8
{[%clk 00:00:21]} {[%emt 00:00:10]} 30. Rd7 {[%clk 00:00:04]} {[%emt 00:00:03]}
Ra1+ {[%clk 00:00:20]} {[%emt 00:00:03]} 31. Kh2 {[%clk 00:00:05]} {[%emt
00:00:01]} h6 {[%clk 00:00:17]} {[%emt 00:00:05]} 32. Kg3 {[%clk 00:00:03]}
{[%emt 00:00:04]} Rc3 {[%clk 00:00:17]} {[%emt 00:00:02]} 33. Qd2 {[%clk
00:00:04]} {[%emt 00:00:01]} Qe5+ {[%clk 00:00:17]} {[%emt 00:00:02]} 34. Qf4
{[%clk 00:00:04]} {[%emt 00:00:03]} Qxf4+ {[%clk 00:00:17]} {[%emt 00:00:01]}
35. Kxf4 {[%clk 00:00:05]} {[%emt 00:00:01]} Kf6 {[%clk 00:00:17]} {[%emt
00:00:02]} 36. g4 {[%clk 00:00:04]} {[%emt 00:00:03]} Ra4+ {[%clk 00:00:17]}
{[%emt 00:00:02]} 37. Kg3 {[%clk 00:00:04]} {[%emt 00:00:02]} Raa3 {[%clk
00:00:18]} {[%emt 00:00:01]} 38. g5+ {[%clk 00:00:05]} {[%emt 00:00:01]} hxg5
{[%clk 00:00:19]} {[%emt 00:00:02]} 39. hxg5+ {[%clk 00:00:06]} {[%emt
00:00:01]} Kg7 {[%clk 00:00:19]} {[%emt 00:00:01]} 0-1

[Event "SM-blixten 2025"]
[Site "Uppsala, Sweden"]
[Date "2025.07.03"]
[Round "4.10"]
[White "Ljungros, Lo"]
[Black "Seo, Jung Min"]
[Result "0-1"]
[TimeControl "3 min + 2 sec increment starting from move 1"]
[BlackTitle "IM"]
[WhiteElo "2074"]
[BlackElo "2468"]

1. Nf3 {[%clk 00:03:01]} {[%emt 00:00:01]} Nf6 {[%clk 00:03:02]} {[%emt
00:00:02]} 2. d4 {[%clk 00:03:02]} {[%emt 00:00:02]} b6 {[%clk 00:03:03]}
{[%emt 00:00:02]} 3. c4 {[%clk 00:03:01]} {[%emt 00:00:02]} e6 {[%clk
00:03:02]} {[%emt 00:00:02]} 4. Nc3 {[%clk 00:03:02]} {[%emt 00:00:01]} Bb4
{[%clk 00:03:00]} {[%emt 00:00:04]} 5. Qc2 {[%clk 00:03:01]} {[%emt 00:00:02]}
Bb7 {[%clk 00:03:00]} {[%emt 00:00:03]} 6. Bg5 {[%clk 00:02:58]} {[%emt
00:00:05]} h6 {[%clk 00:03:00]} {[%emt 00:00:02]} 7. Bxf6 {[%clk 00:02:57]}
{[%emt 00:00:03]} Qxf6 {[%clk 00:03:00]} {[%emt 00:00:02]} 8. e4 {[%clk
00:02:56]} {[%emt 00:00:02]} Bxc3+ {[%clk 00:02:53]} {[%emt 00:00:09]} 9. bxc3
{[%clk 00:02:56]} {[%emt 00:00:02]} O-O {[%clk 00:02:45]} {[%emt 00:00:09]} 10.
Bd3 {[%clk 00:02:57]} {[%emt 00:00:01]} d6 {[%clk 00:02:46]} 11. O-O {[%clk
00:02:57]} {[%emt 00:00:03]} Nc6 {[%clk 00:02:37]} {[%emt 00:00:11]} 12. Rae1
{[%clk 00:02:51]} {[%emt 00:00:08]} e5 {[%clk 00:02:37]} {[%emt 00:00:02]} 13.
d5 {[%clk 00:02:40]} {[%emt 00:00:13]} Ne7 {[%clk 00:02:37]} {[%emt 00:00:03]}
14. Nd2 {[%clk 00:02:39]} {[%emt 00:00:02]} Ng6 {[%clk 00:02:37]} {[%emt
00:00:02]} 15. g3 {[%clk 00:02:31]} {[%emt 00:00:10]} Bc8 {[%clk 00:02:35]}
{[%emt 00:00:02]} 16. f3 {[%clk 00:02:21]} {[%emt 00:00:13]} Qg5 {[%clk
00:02:25]} {[%emt 00:00:12]} 17. Rf2 {[%clk 00:02:18]} {[%emt 00:00:05]} Bd7
{[%clk 00:02:18]} {[%emt 00:00:09]} 18. Nf1 {[%clk 00:02:12]} {[%emt 00:00:09]}
f5 {[%clk 00:02:19]} {[%emt 00:00:02]} 19. exf5 {[%clk 00:02:10]} {[%emt
00:00:04]} Bxf5 {[%clk 00:02:19]} {[%emt 00:00:01]} 20. Bxf5 {[%clk 00:02:10]}
{[%emt 00:00:02]} Rxf5 {[%clk 00:02:07]} {[%emt 00:00:14]} 21. Ne3 {[%clk
00:01:50]} {[%emt 00:00:22]} Rff8 {[%clk 00:02:04]} {[%emt 00:00:05]} 22. Ng2
{[%clk 00:00:49]} {[%emt 00:01:03]} Rf7 {[%clk 00:01:59]} {[%emt 00:00:07]} 23.
Ref1 {[%clk 00:00:49]} {[%emt 00:00:03]} Raf8 {[%clk 00:01:58]} {[%emt
00:00:02]} 24. Qe4 {[%clk 00:00:44]} {[%emt 00:00:06]} Qf6 {[%clk 00:01:50]}
{[%emt 00:00:10]} 25. Qe3 {[%clk 00:00:38]} {[%emt 00:00:09]} Re7 {[%clk
00:01:43]} {[%emt 00:00:09]} 26. Qd2 {[%clk 00:00:36]} {[%emt 00:00:04]} Qf5
{[%clk 00:01:31]} {[%emt 00:00:13]} 27. f4 {[%clk 00:00:33]} Ref7 {[%clk
00:01:15]} {[%emt 00:00:24]} 28. fxe5 {[%clk 00:00:10]} {[%emt 00:00:25]} Qxe5
{[%clk 00:01:15]} {[%emt 00:00:02]} 29. Rxf7 {[%clk 00:00:06]} {[%emt
00:00:06]} Rxf7 {[%clk 00:01:16]} {[%emt 00:00:01]} 30. Re1 {[%clk 00:00:03]}
{[%emt 00:00:04]} Qf5 {[%clk 00:01:16]} {[%emt 00:00:02]} 31. Qe2 {[%emt
00:00:05]} Ne5 {[%clk 00:01:13]} {[%emt 00:00:03]} 32. Nf4 {[%clk 00:00:03]}
{[%emt 00:00:02]} g5 {[%clk 00:01:10]} {[%emt 00:00:04]} 33. Ne6 {[%clk
00:00:04]} {[%emt 00:00:02]} Nf3+ {[%clk 00:01:10]} {[%emt 00:00:02]} 34. Kh1
{[%clk 00:00:03]} {[%emt 00:00:03]} Nxe1 {[%clk 00:01:09]} {[%emt 00:00:02]} 35.
Qxe1 {[%clk 00:00:04]} Qf1+ {[%clk 00:01:09]} {[%emt 00:00:02]} 36. Qxf1 {[%clk
00:00:05]} {[%emt 00:00:01]} Rxf1+ {[%clk 00:01:10]} 37. Kg2 {[%clk 00:00:07]}
Rc1 {[%clk 00:01:05]} {[%emt 00:00:07]} 38. Nxc7 {[%clk 00:00:08]} {[%emt
00:00:02]} Rxc3 {[%clk 00:01:04]} {[%emt 00:00:02]} 39. Nb5 {[%clk 00:00:09]}
{[%emt 00:00:01]} Rxc4 {[%clk 00:01:03]} {[%emt 00:00:04]} 40. Nxa7 {[%clk
00:00:09]} {[%emt 00:00:01]} Rc5 {[%clk 00:01:01]} {[%emt 00:00:03]} 41. Nc6
{[%clk 00:00:08]} {[%emt 00:00:03]} Kf8 {[%clk 00:01:00]} {[%emt 00:00:04]} 42.
Nd8 {[%clk 00:00:03]} {[%emt 00:00:07]} Rxd5 {[%clk 00:00:57]} {[%emt
00:00:06]} 43. Nb7 {[%clk 00:00:04]} {[%emt 00:00:01]} Rd3 {[%clk 00:00:53]}
{[%emt 00:00:04]} 44. a4 {[%clk 00:00:05]} {[%emt 00:00:02]} g4 {[%clk
00:00:51]} {[%emt 00:00:04]} 45. Kf2 {[%clk 00:00:05]} {[%emt 00:00:02]} d5
{[%clk 00:00:50]} {[%emt 00:00:03]} 46. Ke2 {[%clk 00:00:06]} {[%emt 00:00:01]}
Ra3 {[%clk 00:00:51]} {[%emt 00:00:01]} 47. Nd8 {[%clk 00:00:04]} {[%emt
00:00:05]} Rxa4 {[%clk 00:00:50]} {[%emt 00:00:03]} 48. Ne6+ {[%clk 00:00:04]}
{[%emt 00:00:02]} Kg8 {[%clk 00:00:50]} 49. Nc7 {[%clk 00:00:04]} {[%emt
00:00:02]} d4 {[%clk 00:00:46]} {[%emt 00:00:07]} 50. Kd3 {[%clk 00:00:06]} Ra2
{[%clk 00:00:42]} {[%emt 00:00:06]} 51. Kxd4 {[%clk 00:00:06]} {[%emt
00:00:02]} Rxh2 {[%clk 00:00:42]} {[%emt 00:00:01]} 52. Ke4 {[%clk 00:00:07]}
{[%emt 00:00:01]} Rf2 {[%clk 00:00:40]} {[%emt 00:00:03]} 53. Nd5 {[%clk
00:00:06]} {[%emt 00:00:04]} Rf3 {[%clk 00:00:39]} {[%emt 00:00:03]} 54. Nxb6
{[%clk 00:00:07]} {[%emt 00:00:01]} Rxg3 {[%clk 00:00:38]} {[%emt 00:00:04]} 55.
Kf4 {[%clk 00:00:08]} Rg1 {[%clk 00:00:35]} {[%emt 00:00:04]} 56. Nd5 {[%clk
00:00:09]} {[%emt 00:00:02]} Kf7 {[%clk 00:00:31]} {[%emt 00:00:06]} 57. Ne3
{[%clk 00:00:07]} {[%emt 00:00:03]} h5 {[%clk 00:00:31]} {[%emt 00:00:02]} 58.
Kg5 {[%clk 00:00:05]} {[%emt 00:00:05]} Rh1 {[%clk 00:00:29]} {[%emt 00:00:03]}
59. Nf5 {[%clk 00:00:03]} {[%emt 00:00:05]} Rh3 {[%clk 00:00:29]} {[%emt
00:00:02]} 60. Kf4 {[%clk 00:00:03]} {[%emt 00:00:02]} Kf6 {[%clk 00:00:30]}
{[%emt 00:00:01]} 61. Nd4 {[%clk 00:00:04]} {[%emt 00:00:02]} Rd3 {[%clk
00:00:24]} {[%emt 00:00:06]} 62. Ne2 {[%clk 00:00:05]} {[%emt 00:00:02]} Rf3+
{[%clk 00:00:23]} {[%emt 00:00:04]} 63. Ke4 {[%clk 00:00:06]} Kg5 {[%clk
00:00:23]} {[%emt 00:00:02]} 64. Ng1 {[%clk 00:00:07]} Rf8 {[%clk 00:00:21]}
{[%emt 00:00:04]} 65. Ke3 {[%clk 00:00:07]} {[%emt 00:00:02]} h4 {[%clk
00:00:21]} {[%emt 00:00:01]} 66. Ne2 {[%clk 00:00:07]} {[%emt 00:00:02]} g3
{[%clk 00:00:19]} {[%emt 00:00:05]} 67. Nd4 {[%clk 00:00:06]} {[%emt 00:00:03]}
Kg4 {[%clk 00:00:20]} {[%emt 00:00:01]} 68. Ke2 {[%clk 00:00:04]} {[%emt
00:00:04]} h3 {[%clk 00:00:20]} {[%emt 00:00:02]} 0-1